fUST/lending_fUST_20251209
["ID","MTS","AMOUNT","RATE_DAILY","PERIOD"]
[397705386,1765222245204,-500.0,8.219e-05,2]
[397705388,1765222245213,-500.0,8.219e-05,2]
[397705390,1765222245223,-500.0,8.219e-05,2]
[397705392,1765222245232,-1206.25,8.219e-05,2]
[397705394,1765222245241,-500.0,8.219e-05,2]
[397705396,1765222245250,-520.0,8.219e-05,2]
[397705398,1765222245259,-500.0,8.219e-05,2]
[397705400,1765222245269,-556.23,8.219e-05,2]
[397705402,1765222245278,-500.0,8.219e-05,2]
[397705404,1765222245288,-500.0,8.219e-05,2]
[397705406,1765222245298,-521.67,8.219e-05,2]
[397705408,1765222245308,-500.0,8.219e-05,2]
[397705410,1765222245317,-8754.12,8.219e-05,2]
[397705412,1765222245326,-500.0,8.219e-05,2]
[397705414,1765222245335,-676.23,8.219e-05,2]
[397705416,1765222245345,-500.0,8.219e-05,2]
[397705418,1765222245354,-2008.78,8.219e-05,2]
[397705420,1765222245363,-500.0,8.219e-05,2]
[397705422,1765222245372,-500.0,8.219e-05,2]
[397705424,1765222245381,-500.0,8.219e-05,2]
[397705426,1765222245391,-1305.0,8.219e-05,2]
[397705428,1765222245400,-500.0,8.219e-05,2]
[397705430,1765222245410,-4429.4,8.219e-05,2]
[397705432,1765222245419,-699.89,8.219e-05,2]
[397705434,1765222245429,-1235.16,8.219e-05,2]
[397705436,1765222245439,-1327.68,8.219e-05,2]
[397705438,1765222245448,-567.35,8.219e-05,2]
[397705440,1765222245458,-1000.0,8.219e-05,2]
[397705442,1765222245467,-4987.06,8.219e-05,2]
[397705444,1765222245476,-500.0,8.219e-05,2]
[397705446,1765222245485,-1351.52,8.219e-05,2]
[397705448,1765222245495,-500.0,8.219e-05,2]
[397705450,1765222245505,-500.0,8.219e-05,2]
[397705452,1765222245514,-500.0,8.219e-05,2]
[397705454,1765222245523,-500.0,8.219e-05,2]
[397705456,1765222245533,-500.0,8.219e-05,2]
[397705458,1765222245542,-2124.35,8.219e-05,2]
[397705460,1765222245552,-1827.07,8.219e-05,2]
[397705462,1765222245561,-981.58,8.219e-05,2]
[397705464,1765222245570,-500.0,8.219e-05,2]
[397705466,1765222245580,-818.77,8.219e-05,2]
[397705468,1765222245590,-500.0,8.219e-05,2]
[397705470,1765222245599,-720.44,8.219e-05,2]
[397705472,1765222245608,-500.0,8.219e-05,2]
[397705474,1765222245617,-500.0,8.219e-05,2]
[397705476,1765222245627,-500.0,8.219e-05,2]
[397705478,1765222245636,-1727.47,8.219e-05,2]
[397705480,1765222245646,-4825.17,8.219e-05,2]
[397705481,1765222245655,-500.0,8.219e-05,2]
[397705483,1765222245666,-500.0,8.219e-05,2]
[397705485,1765222245677,-500.0,8.219e-05,2]
[397705487,1765222245687,-1081.72,8.219e-05,2]
[397705489,1765222245696,-1208.53,8.219e-05,2]
[397705491,1765222245706,-908.34,8.219e-05,2]
[397705493,1765222245715,-15305.83,8.219e-05,2]
[397705495,1765222245724,-500.0,8.219e-05,2]
[397705497,1765222245734,-1990.96,8.219e-05,2]
[397705499,1765222245744,-69099.11,8.219e-05,2]
[397705501,1765222245754,-500.0,8.219e-05,2]
[397705503,1765222245763,-500.0,8.219e-05,2]
[397705505,1765222245772,-1586.58,8.219e-05,2]
[397705507,1765222245782,-639.83,8.219e-05,2]
[397705509,1765222245791,-500.0,8.219e-05,2]
[397705511,1765222245803,-500.0,8.219e-05,2]
[397705513,1765222245812,-500.0,8.219e-05,2]
[397705515,1765222245821,-500.0,8.219e-05,2]
[397705517,1765222245831,-1614.29,8.219e-05,2]
[397705519,1765222245840,-900.86,8.219e-05,2]
[397705521,1765222245849,-1000.0,8.219e-05,2]
[397705523,1765222245858,-4516.28,8.219e-05,2]
[397705525,1765222245867,-1000.0,8.219e-05,2]
[397705527,1765222245876,-1000.0,8.219e-05,2]
[397705528,1765222245885,-1000.0,8.219e-05,2]
[397705530,1765222245895,-606.16899906,8.219e-05,2]
[397705532,1765222245904,-496.2476,8.219e-05,2]
[397705534,1765222245914,-899.2495,8.219e-05,2]
[397705536,1765222245923,-500.0,8.219e-05,2]
[397705539,1765222245933,-500.0,8.219e-05,2]
[397705542,1765222245942,-500.0,8.219e-05,2]
[397705545,1765222245951,-1419.24,8.219e-05,2]
[397705547,1765222245961,-1643.58,8.219e-05,2]
[397705550,1765222245970,-500.0,8.219e-05,2]
[397705552,1765222245979,-500.0,8.219e-05,2]
[397705554,1765222245989,-151.0,8.219e-05,2]
[397705557,1765222245999,-500.0,8.219e-05,2]
[397705559,1765222246009,-500.0,8.219e-05,2]
[397705561,1765222246018,-500.0,8.219e-05,2]
[397705563,1765222246028,-500.0,8.219e-05,2]
[397705565,1765222246038,-500.0,8.219e-05,2]
[397705567,1765222246048,-527.11229906,8.219e-05,2]
[397705569,1765222246058,-500.0,8.219e-05,2]
[397705571,1765222246067,-500.0,8.219e-05,2]
[397705573,1765222246077,-733.66,8.219e-05,2]
[397705575,1765222246086,-975.53,8.219e-05,2]
[397705577,1765222246095,-500.0,8.219e-05,2]
[397705579,1765222246106,-2206.45,8.219e-05,2]
[397705581,1765222246118,-500.0,8.219e-05,2]
[397705583,1765222246127,-500.0,8.219e-05,2]
[397705585,1765222246136,-151.0,8.351e-05,2]
[397705587,1765222246146,-639.0,8.351e-05,2]
[397705589,1765222246157,-2579.17784983,8.355e-05,2]
[397705591,1765222246168,-235.38090182,8.356e-05,2]
[397705593,1765222246178,-470.0,8.356e-05,2]
[397705595,1765222246188,-500.0,8.356e-05,2]
[397705597,1765222246198,-151.0,8.356e-05,2]
[397705599,1765222246207,-500.0,8.356e-05,2]
[397705601,1765222246217,-502.34732141,8.356e-05,2]
[397705603,1765222246227,-500.0,8.356e-05,2]
[397705605,1765222246236,-151.0,8.356e-05,2]
[397705607,1765222246245,-151.0,8.356e-05,2]
[397705609,1765222246254,-151.0,8.356e-05,2]
[397705611,1765222246264,-151.0,8.356e-05,2]
[397705613,1765222246273,-151.0,8.356e-05,2]
[397705615,1765222246283,-151.0,8.356e-05,2]
[397705617,1765222246292,-151.0,8.356e-05,2]
[397705619,1765222246302,-151.0,8.356e-05,2]
[397705621,1765222246311,-151.0,8.356e-05,2]
[397705623,1765222246321,-899.2495,8.384e-05,2]
[397705625,1765222246330,-720.0,8.462e-05,2]
[397705627,1765222246339,-151.0,8.488e-05,2]
[397705629,1765222246348,-639.0,8.488e-05,2]
[397705631,1765222246358,-470.0,8.493e-05,2]
[397705633,1765222246367,-500.0,8.493e-05,2]
[397705635,1765222246376,-151.0,8.493e-05,2]
[397705637,1765222246385,-500.0,8.493e-05,2]
[397705639,1765222246394,-208.00162057,8.493e-05,2]
[397705641,1765222246405,-151.0,8.493e-05,2]
[397705643,1765222246415,-198.0,8.493e-05,2]
[397705645,1765222246424,-152.19994044,8.493e-05,2]
[397705647,1765222246434,-151.80050536,8.493e-05,2]
[397705649,1765222246443,-151.0,8.493e-05,2]
[397705651,1765222246452,-151.0,8.493e-05,2]
[397705653,1765222246461,-151.0,8.493e-05,2]
[397705655,1765222246472,-210.99643345,8.493e-05,2]
[397705657,1765222246482,-152.66533095,8.493e-05,2]
[397705659,1765222246491,-600.03,8.493e-05,2]
[397705661,1765222246501,-500.0,8.493e-05,2]
[397705663,1765222246510,-500.0,8.493e-05,2]
[397705665,1765222246520,-520.18,8.493e-05,2]
[397705667,1765222246529,-752.99,8.493e-05,2]
[397705669,1765222246538,-500.0,8.493e-05,2]
[397705671,1765222246548,-500.0,8.493e-05,2]
[397705673,1765222246557,-492.52502217,8.493e-05,2]
[397705675,1765222246566,-500.0,8.493e-05,2]
[397705677,1765222246576,-578.35,8.493e-05,2]
[397705679,1765222246586,-500.0,8.493e-05,2]
[397705681,1765222246596,-500.0,8.493e-05,2]
[397705683,1765222246606,-500.0,8.493e-05,2]
[397705685,1765222246616,-500.0,8.493e-05,2]
[397705687,1765222246626,-1718.53,8.493e-05,2]
[397705689,1765222246635,-771.51,8.493e-05,2]
[397705691,1765222246645,-1032.15,8.493e-05,2]
[397705694,1765222246655,-191.60338613,8.493e-05,2]
[397705695,1765222246665,-500.0,8.493e-05,2]
[397705697,1765222246679,-536.29,8.493e-05,2]
[397705699,1765222246689,-500.0,8.493e-05,2]
[397705701,1765222246699,-1139.11,8.493e-05,2]
[397705703,1765222246708,-488.02370001,8.493e-05,2]
[397705705,1765222246719,-500.0,8.493e-05,2]
[397705707,1765222246728,-923.93,8.493e-05,2]
[397705709,1765222246737,-1027.38,8.493e-05,2]
[397705711,1765222246747,-500.0,8.493e-05,2]
[397705713,1765222246758,-1042.56,8.493e-05,2]
[397705715,1765222246770,-500.0,8.493e-05,2]
[397705717,1765222246780,-1038.56,8.493e-05,2]
[397705719,1765222246790,-723.17,8.493e-05,2]
[397705722,1765222246800,-500.0,8.493e-05,2]
[397705724,1765222246809,-713.22,8.493e-05,2]
[397705726,1765222246819,-500.0,8.493e-05,2]
[397705728,1765222246828,-590.99,8.493e-05,2]
[397705730,1765222246838,-954.71,8.493e-05,2]
[397705731,1765222246846,-500.0,8.493e-05,2]
[397705734,1765222246856,-487.65770509,8.493e-05,2]
[397705735,1765222246866,-500.0,8.493e-05,2]
[397705737,1765222246875,-1495.27,8.493e-05,2]
[397705739,1765222246885,-500.0,8.493e-05,2]
[397705742,1765222246894,-500.0,8.493e-05,2]
[397705744,1765222246905,-500.0,8.493e-05,2]
[397705746,1765222246914,-500.0,8.493e-05,2]
[397705748,1765222246923,-500.0,8.493e-05,2]
[397705750,1765222246933,-500.0,8.493e-05,2]
[397705752,1765222246941,-500.0,8.493e-05,2]
[397705754,1765222246951,-705.64,8.493e-05,2]
[397705756,1765222246960,-500.0,8.493e-05,2]
[397705758,1765222246970,-500.0,8.493e-05,2]
[397705760,1765222246979,-599.63,8.493e-05,2]
[397705762,1765222246987,-1411.31,8.493e-05,2]
[397705763,1765222246996,-500.0,8.493e-05,2]
[397705765,1765222247005,-542.28,8.493e-05,2]
[397705767,1765222247014,-611.46,8.493e-05,2]
[397705769,1765222247023,-500.0,8.493e-05,2]
[397705771,1765222247032,-500.0,8.493e-05,2]
[397705773,1765222247041,-1024.59,8.493e-05,2]
[397705775,1765222247050,-555.39,8.493e-05,2]
[397705777,1765222247060,-1337.51,8.493e-05,2]
[397705779,1765222247069,-500.0,8.493e-05,2]
[397705781,1765222247078,-710.23,8.493e-05,2]
[397705783,1765222247087,-1349.34,8.493e-05,2]
[397705785,1765222247096,-612.89,8.493e-05,2]
[397705787,1765222247105,-500.0,8.493e-05,2]
[397705789,1765222247115,-500.36,8.493e-05,2]
[397705791,1765222247124,-907.85,8.493e-05,2]
[397705793,1765222247134,-500.0,8.493e-05,2]
[397705795,1765222247143,-588.03,8.493e-05,2]
[397705797,1765222247152,-500.0,8.493e-05,2]
[397705798,1765222247163,-566.64,8.493e-05,2]
[397705799,1765222247172,-1013.7,8.493e-05,2]
[397705800,1765222247181,-2160.95,8.493e-05,2]
[397705801,1765222247190,-643.57,8.493e-05,2]
[397705802,1765222247199,-1683.89,8.493e-05,2]
[397705803,1765222247208,-952.07,8.493e-05,2]
[397705804,1765222247218,-585.63,8.493e-05,2]
[397705805,1765222247227,-500.0,8.493e-05,2]
[397705807,1765222247236,-500.0,8.493e-05,2]
[397705809,1765222247246,-500.0,8.493e-05,2]
[397705811,1765222247254,-961.08,8.493e-05,2]
[397705813,1765222247264,-753.99,8.493e-05,2]
[397705815,1765222247272,-500.0,8.493e-05,2]
[397705817,1765222247282,-721.48,8.493e-05,2]
[397705819,1765222247291,-500.0,8.493e-05,2]
[397705821,1765222247299,-500.0,8.493e-05,2]
[397705823,1765222247308,-500.0,8.493e-05,2]
[397705825,1765222247319,-530.16,8.493e-05,2]
[397705827,1765222247328,-559.43511021,8.493e-05,2]
[397705829,1765222247337,-1048.2,8.493e-05,2]
[397705831,1765222247346,-745.12,8.493e-05,2]
[397705833,1765222247355,-500.0,8.493e-05,2]
[397705835,1765222247364,-500.0,8.493e-05,2]
[397705837,1765222247374,-944.5,8.493e-05,2]
[397705839,1765222247383,-1423.9,8.493e-05,2]
[397705841,1765222247392,-500.0,8.493e-05,2]
[397705843,1765222247401,-500.0,8.493e-05,2]
[397705845,1765222247410,-1227.89,8.493e-05,2]
[397705847,1765222247419,-500.0,8.493e-05,2]
[397705849,1765222247427,-500.0,8.493e-05,2]
[397705851,1765222247436,-521.93,8.493e-05,2]
[397705853,1765222247445,-678.7,8.493e-05,2]
[397705855,1765222247454,-550.88,8.493e-05,2]
[397705857,1765222247463,-500.0,8.493e-05,2]
[397705859,1765222247473,-571.37228407,8.493e-05,2]
[397705861,1765222247482,-500.0,8.493e-05,2]
[397705863,1765222247492,-500.0,8.493e-05,2]
[397705865,1765222247501,-500.0,8.493e-05,2]
[397705867,1765222247510,-500.0,8.493e-05,2]
[397705869,1765222247519,-500.0,8.493e-05,2]
[397705871,1765222247528,-931.2,8.493e-05,2]
[397705872,1765222247538,-500.0,8.493e-05,2]
[397705874,1765222247547,-1953.42,8.493e-05,2]
[397705876,1765222247556,-915.87,8.493e-05,2]
[397705878,1765222247565,-1352.46,8.493e-05,2]
[397705880,1765222247575,-628.17,8.493e-05,2]
[397705882,1765222247584,-873.64,8.493e-05,2]
[397705884,1765222247593,-500.0,8.493e-05,2]
[397705886,1765222247603,-500.0,8.493e-05,2]
[397705888,1765222247611,-787.73,8.493e-05,2]
[397705890,1765222247621,-500.0,8.493e-05,2]
[397705892,1765222247630,-500.0,8.493e-05,2]
[397705894,1765222247640,-500.0,8.493e-05,2]
[397705896,1765222247649,-500.0,8.493e-05,2]
[397705898,1765222247659,-500.0,8.493e-05,2]
[397705901,1765222247673,-604.76,8.493e-05,2]
[397705903,1765222247682,-868.37,8.493e-05,2]
[397705905,1765222247691,-500.0,8.493e-05,2]
[397705907,1765222247701,-594.62,8.493e-05,2]
[397705909,1765222247711,-500.0,8.493e-05,2]
[397705911,1765222247720,-655.2,8.493e-05,2]
[397705913,1765222247730,-637.66,8.493e-05,2]
[397705915,1765222247740,-2734.82,8.493e-05,2]
[397705917,1765222247751,-1053.26,8.493e-05,2]
[397705919,1765222247760,-570.13,8.493e-05,2]
[397705921,1765222247769,-500.0,8.493e-05,2]
[397705923,1765222247779,-500.0,8.493e-05,2]
[397705925,1765222247787,-500.0,8.493e-05,2]
[397705927,1765222247796,-500.0,8.493e-05,2]
[397705929,1765222247806,-500.0,8.493e-05,2]
[397705931,1765222247816,-616.57,8.493e-05,2]
[397705933,1765222247825,-500.0,8.493e-05,2]
[397705935,1765222247835,-500.0,8.493e-05,2]
[397705937,1765222247844,-500.0,8.493e-05,2]
[397705939,1765222247853,-500.0,8.493e-05,2]
[397705941,1765222247867,-500.0,8.493e-05,2]
[397705943,1765222247877,-500.0,8.493e-05,2]
[397705945,1765222247886,-500.0,8.493e-05,2]
[397705947,1765222247895,-877.46,8.493e-05,2]
[397705949,1765222247905,-500.0,8.493e-05,2]
[397705951,1765222247915,-500.0,8.493e-05,2]
[397705953,1765222247924,-500.0,8.493e-05,2]
[397705955,1765222247933,-814.59,8.493e-05,2]
[397705957,1765222247943,-819.34,8.493e-05,2]
[397705959,1765222247952,-548.87,8.493e-05,2]
[397705961,1765222247962,-500.0,8.493e-05,2]
[397705963,1765222247971,-500.0,8.493e-05,2]
[397705965,1765222247980,-500.0,8.493e-05,2]
[397705967,1765222247989,-566.59896654,8.493e-05,2]
[397705969,1765222247998,-2154.0,8.493e-05,2]
[397705972,1765222248008,-500.0,8.493e-05,2]
[397705974,1765222248017,-500.0,8.493e-05,2]
[397705976,1765222248028,-500.0,8.493e-05,2]
[397705978,1765222248038,-581.63283458,8.493e-05,2]
[397705980,1765222248049,-500.0,8.493e-05,2]
[397705981,1765222248058,-500.0,8.493e-05,2]
[397705984,1765222248068,-263.55099347,8.493e-05,2]
[397705986,1765222248077,-546.4,8.493e-05,2]
[397705988,1765222248087,-945.45,8.493e-05,2]
[397705990,1765222248096,-761.35,8.493e-05,2]
[397705992,1765222248105,-1459.66,8.493e-05,2]
[397705994,1765222248114,-500.0,8.493e-05,2]
[397705996,1765222248123,-500.0,8.493e-05,2]
[397705998,1765222248132,-566.88,8.493e-05,2]
[397706000,1765222248141,-500.0,8.493e-05,2]
[397706002,1765222248151,-1157.68,8.493e-05,2]
[397706004,1765222248161,-500.0,8.493e-05,2]
[397706006,1765222248170,-4640.25,8.493e-05,2]
[397706008,1765222248180,-500.0,8.493e-05,2]
[397706010,1765222248189,-1206.81,8.493e-05,2]
[397706012,1765222248198,-500.0,8.493e-05,2]
[397706014,1765222248208,-500.0,8.493e-05,2]
[397706016,1765222248217,-885.33,8.493e-05,2]
[397706018,1765222248227,-500.0,8.493e-05,2]
[397706020,1765222248236,-804.88,8.493e-05,2]
[397706022,1765222248245,-500.0,8.493e-05,2]
[397706024,1765222248255,-699.76,8.493e-05,2]
[397706026,1765222248264,-716.8,8.493e-05,2]
[397706028,1765222248273,-1025.91,8.493e-05,2]
[397706050,1765222248455,-1075.77,8.493e-05,2]
[397706052,1765222248465,-500.0,8.493e-05,2]
[397706054,1765222248474,-500.0,8.493e-05,2]
[397706056,1765222248483,-500.0,8.493e-05,2]
[397706058,1765222248493,-500.0,8.493e-05,2]
[397706060,1765222248503,-500.0,8.493e-05,2]
[397706061,1765222248512,-500.0,8.493e-05,2]
[397706063,1765222248521,-734.46,8.493e-05,2]
[397706065,1765222248532,-500.0,8.493e-05,2]
[397706067,1765222248541,-500.0,8.493e-05,2]
[397706070,1765222248552,-500.0,8.493e-05,2]
[397706072,1765222248561,-2150.55,8.493e-05,2]
[397706073,1765222248571,-1016.04,8.493e-05,2]
[397706075,1765222248580,-943.31,8.493e-05,2]
[397706077,1765222248590,-500.0,8.493e-05,2]
[397706079,1765222248599,-764.54,8.493e-05,2]
[397706081,1765222248609,-500.0,8.493e-05,2]
[397706083,1765222248620,-692.01,8.493e-05,2]
[397706086,1765222248629,-600.95,8.493e-05,2]
[397706088,1765222248641,-500.0,8.493e-05,2]
[397706089,1765222248650,-1101.43,8.493e-05,2]
[397706092,1765222248663,-500.0,8.493e-05,2]
[397706094,1765222248677,-500.0,8.493e-05,2]
[397706096,1765222248687,-1098.63,8.493e-05,2]
[397706097,1765222248696,-6765.94,8.493e-05,2]
[397706100,1765222248706,-948.15,8.493e-05,2]
[397706101,1765222248718,-650.49,8.493e-05,2]
[397706104,1765222248729,-500.0,8.493e-05,2]
[397706106,1765222248739,-614.88,8.493e-05,2]
[397706108,1765222248751,-500.0,8.493e-05,2]
[397706110,1765222248761,-500.0,8.493e-05,2]
[397706112,1765222248771,-500.0,8.493e-05,2]
[397706114,1765222248780,-1131.78,8.493e-05,2]
[397706116,1765222248790,-500.0,8.493e-05,2]
[397706118,1765222248799,-788.15,8.493e-05,2]
[397706120,1765222248808,-1077.81,8.493e-05,2]
[397706122,1765222248819,-500.0,8.493e-05,2]
[397706124,1765222248829,-597.39,8.493e-05,2]
[397706126,1765222248839,-8208.13,8.493e-05,2]
[397706128,1765222248849,-1020.34,8.493e-05,2]
[397706130,1765222248859,-573.2,8.493e-05,2]
[397706132,1765222248869,-500.0,8.493e-05,2]
[397706134,1765222248879,-739.31,8.493e-05,2]
[397706136,1765222248888,-545.83,8.493e-05,2]
[397706138,1765222248898,-779.45,8.493e-05,2]
[397706140,1765222248909,-1360.93,8.493e-05,2]
[397706142,1765222248918,-655.21,8.493e-05,2]
[397706144,1765222248928,-1300.94,8.493e-05,2]
[397706146,1765222248937,-500.0,8.493e-05,2]
[397706148,1765222248947,-2839.05,8.493e-05,2]
[397706150,1765222248956,-943.61,8.493e-05,2]
[397706152,1765222248965,-500.0,8.493e-05,2]
[397706154,1765222248975,-1664.64,8.493e-05,2]
[397706156,1765222248984,-2196.47,8.493e-05,2]
[397706158,1765222248994,-500.0,8.493e-05,2]
[397706160,1765222249003,-601.94,8.493e-05,2]
[397706162,1765222249012,-1503.16,8.493e-05,2]
[397706164,1765222249021,-500.0,8.493e-05,2]
[397706166,1765222249031,-889.61,8.493e-05,2]
[397706168,1765222249040,-1217.87,8.493e-05,2]
[397706170,1765222249050,-1540.41,8.493e-05,2]
[397706172,1765222249060,-824.43,8.493e-05,2]
[397706174,1765222249069,-1342.72,8.493e-05,2]
[397706177,1765222249079,-2101.76,8.493e-05,2]
[397706178,1765222249088,-500.0,8.493e-05,2]
[397706180,1765222249098,-784.75,8.493e-05,2]
[397706182,1765222249107,-1073.26,8.493e-05,2]
[397706184,1765222249117,-878.99,8.493e-05,2]
[397706187,1765222249127,-3100.47,8.493e-05,2]
[397706189,1765222249137,-4075.17,8.493e-05,2]
[397706191,1765222249147,-520.41,8.493e-05,2]
[397706193,1765222249159,-563.11,8.493e-05,2]
[397706195,1765222249168,-1095.78,8.493e-05,2]
[397706197,1765222249178,-500.0,8.493e-05,2]
[397706199,1765222249187,-500.0,8.493e-05,2]
[397706200,1765222249196,-1501.69,8.493e-05,2]
[397706203,1765222249207,-503.04,8.493e-05,2]
[397706205,1765222249216,-986.7,8.493e-05,2]
[397706207,1765222249228,-542.36,8.493e-05,2]
[397706209,1765222249237,-516.16,8.493e-05,2]
[397706211,1765222249246,-595.57,8.493e-05,2]
[397706213,1765222249255,-500.0,8.493e-05,2]
[397706214,1765222249264,-2205.406198,8.493e-05,2]
[397706216,1765222249273,-22225.88,8.493e-05,2]
[397706218,1765222249282,-500.0,8.493e-05,2]
[397706220,1765222249291,-500.0,8.493e-05,2]
[397706222,1765222249300,-500.0,8.493e-05,2]
[397706224,1765222249309,-1854.33,8.493e-05,2]
[397706226,1765222249318,-500.0,8.493e-05,2]
[397706228,1765222249327,-578.92670596,8.493e-05,2]
[397706230,1765222249336,-500.0,8.493e-05,2]
[397706232,1765222249346,-500.0,8.493e-05,2]
[397706234,1765222249356,-2212.06,8.493e-05,2]
[397706237,1765222249366,-303.85513128,8.493e-05,2]
[397706238,1765222249376,-500.65644946,8.493e-05,2]
[397706240,1765222249385,-500.0,8.493e-05,2]
[397706243,1765222249395,-500.0,8.493e-05,2]
[397706244,1765222249404,-1396.39,8.493e-05,2]
[397706246,1765222249414,-500.0,8.493e-05,2]
[397706248,1765222249423,-621.44,8.493e-05,2]
[397706250,1765222249432,-1629.71,8.493e-05,2]
[397706252,1765222249441,-500.0,8.493e-05,2]
[397706254,1765222249450,-986.42,8.493e-05,2]
[397706256,1765222249459,-2576.18,8.493e-05,2]
[397706258,1765222249468,-4852.55,8.493e-05,2]
[397706260,1765222249477,-805.24,8.493e-05,2]
[397706262,1765222249487,-556.68,8.493e-05,2]
[397706264,1765222249496,-43.19595437,8.493e-05,2]
[397706303,1765222249854,-456.80404563,8.493e-05,2]
[397706305,1765222249864,-1126.09,8.493e-05,2]
[397706307,1765222249873,-767.79,8.493e-05,2]
[397706309,1765222249882,-749.29,8.493e-05,2]
[397706310,1765222249891,-646.93,8.493e-05,2]
[397706312,1765222249901,-500.0,8.493e-05,2]
[397706315,1765222249912,-6977.46,8.493e-05,2]
[397706317,1765222249921,-500.0,8.493e-05,2]
[397706319,1765222249930,-6922.39,8.493e-05,2]
[397706321,1765222249939,-500.0,8.493e-05,2]
[397706323,1765222249948,-500.0,8.493e-05,2]
[397706325,1765222249957,-727.68,8.493e-05,2]
[397706327,1765222249966,-500.0,8.493e-05,2]
[397706329,1765222249975,-793.96,8.493e-05,2]
[397706331,1765222249984,-808.91,8.493e-05,2]
[397706333,1765222249993,-500.0,8.493e-05,2]
[397706335,1765222250002,-500.0,8.493e-05,2]
[397706337,1765222250011,-868.23,8.493e-05,2]
[397706339,1765222250020,-500.0,8.493e-05,2]
[397706341,1765222250029,-500.0,8.493e-05,2]
[397706343,1765222250041,-183.5945837,8.493e-05,2]
[397706345,1765222250051,-500.0,8.493e-05,2]
[397706347,1765222250059,-500.0,8.493e-05,2]
[397706349,1765222250068,-500.0,8.493e-05,2]
[397706351,1765222250077,-1283.22,8.493e-05,2]
[397706353,1765222250086,-826.4,8.493e-05,2]
[397706355,1765222250095,-2165.8,8.493e-05,2]
[397706357,1765222250104,-500.0,8.493e-05,2]
[397706359,1765222250113,-4475.67,8.493e-05,2]
[397706361,1765222250123,-579.16,8.493e-05,2]
[397706363,1765222250133,-500.0,8.493e-05,2]
[397706365,1765222250143,-500.0,8.493e-05,2]
[397706367,1765222250152,-4231.87,8.493e-05,2]
[397706369,1765222250163,-644.0,8.493e-05,2]
[397706371,1765222250172,-749.26,8.493e-05,2]
[397706373,1765222250181,-736.82,8.493e-05,2]
[397706375,1765222250190,-500.0,8.493e-05,2]
[397706377,1765222250199,-568.18,8.493e-05,2]
[397706379,1765222250209,-869.51,8.493e-05,2]
[397706381,1765222250218,-500.0,8.493e-05,2]
[397706383,1765222250227,-500.0,8.493e-05,2]
[397706385,1765222250236,-715.3,8.493e-05,2]
[397706387,1765222250245,-500.0,8.493e-05,2]
[397706389,1765222250254,-1789.33,8.493e-05,2]
[397706391,1765222250263,-288.63934345,8.493e-05,2]
[397706393,1765222250273,-964.86,8.493e-05,2]
[397706395,1765222250282,-500.0,8.493e-05,2]
[397706397,1765222250291,-1402.27,8.493e-05,2]
[397706399,1765222250300,-500.0,8.493e-05,2]
[397706401,1765222250310,-500.0,8.493e-05,2]
[397706403,1765222250319,-2421.35,8.493e-05,2]
[397706405,1765222250328,-7192.87,8.493e-05,2]
[397706407,1765222250337,-500.0,8.493e-05,2]
[397706410,1765222250347,-500.0,8.493e-05,2]
[397706412,1765222250356,-500.0,8.493e-05,2]
[397706414,1765222250366,-500.0,8.493e-05,2]
[397706416,1765222250375,-500.0,8.493e-05,2]
[397706418,1765222250384,-4093.48,8.493e-05,2]
[397706420,1765222250394,-500.0,8.493e-05,2]
[397706422,1765222250404,-1296.74,8.493e-05,2]
[397706424,1765222250414,-581.0,8.493e-05,2]
[397706426,1765222250423,-500.44254276,8.493e-05,2]
[397706428,1765222250432,-500.0,8.493e-05,2]
[397706429,1765222250441,-500.0,8.493e-05,2]
[397706431,1765222250451,-880.65,8.493e-05,2]
[397706433,1765222250459,-5000.0,8.493e-05,2]
[397706435,1765222250469,-500.0,8.493e-05,2]
[397706437,1765222250479,-242.75149435,8.493e-05,2]